[Event "Titled Tuesday Blitz August 02 Early 2022"]
[White "Jubin Jimmy"]
[Black "Costachi, Mihnea"]
[WhiteFideId "46686614"]
[BlackFideId "1217518"]
[WhiteElo "2219"]
[BlackElo "2477"]
[Result "1-0"]
[Round "04"]
[TimeControl "180+1"]
[Date "2022.08.02"]
[WhiteClock "0:00:16"]
[BlackClock "0:00:14"]

1. d4 {[%clk 0:03:00]}  Nf6 {[%clk 0:02:59]} 2. c4 {[%clk 0:03:00]}  g6 {[%clk 0:02:53]} 3. g3 {[%clk 0:02:57]}  c5 {[%clk 0:02:49]} 4. d5 {[%clk 0:02:50]}  Bg7 {[%clk 0:02:48]} 5. Nc3 {[%clk 0:02:49]}  O-O {[%clk 0:02:48]} 6. Bg2 {[%clk 0:02:49]}  d6 {[%clk 0:02:48]} 7. Nf3 {[%clk 0:02:46]}  a6 {[%clk 0:02:48]} 8. a4 {[%clk 0:02:45]}  e6 {[%clk 0:02:46]} 9. O-O {[%clk 0:02:46]}  exd5 {[%clk 0:02:46]} 10. cxd5 {[%clk 0:02:47]}  Re8 {[%clk 0:02:47]} 11. Nd2 {[%clk 0:02:46]}  Nbd7 {[%clk 0:02:44]} 12. Nc4 {[%clk 0:02:46]}  Ne5 {[%clk 0:02:43]} 13. Na3 {[%clk 0:02:47]}  b5 {[%clk 0:02:39]} 14. axb5 {[%clk 0:02:45]}  axb5 {[%clk 0:02:40]} 15. Ncxb5 {[%clk 0:02:46]}  Ba6 {[%clk 0:02:32]} 16. Nc3 {[%clk 0:02:46]}  Nc4 {[%clk 0:02:23]} 17. Nxc4 {[%clk 0:02:44]}  Bxc4 {[%clk 0:02:24]} 18. Rxa8 {[%clk 0:02:41]}  Qxa8 {[%clk 0:02:25]} 19. Bf4 {[%clk 0:02:34]}  Qa6 {[%clk 0:02:25]} 20. Re1 {[%clk 0:02:31]}  Ng4 {[%clk 0:02:19]} 21. Ne4 {[%clk 0:01:55]}  Ne5 {[%clk 0:01:59]} 22. Qd2 {[%clk 0:01:47]}  Rb8 {[%clk 0:01:47]} 23. Bh6 {[%clk 0:01:13]}  Bxh6 {[%clk 0:01:13]} 24. Qxh6 {[%clk 0:01:12]}  Nd7 {[%clk 0:01:14]} 25. Qf4 {[%clk 0:00:53]}  Rb6 {[%clk 0:01:04]} 26. Bh3 {[%clk 0:00:50]}  Nf8 {[%clk 0:00:44]} 27. Nf6+ {[%clk 0:00:28]}  Kh8 {[%clk 0:00:44]} 28. Qh6 {[%clk 0:00:26]}  Rb8 {[%clk 0:00:44]} 29. Bd7 {[%clk 0:00:23]}  Qa5 {[%clk 0:00:37]} 30. Rc1 {[%clk 0:00:17]}  Qd8 {[%clk 0:00:35]} 31. Ne8 {[%clk 0:00:17]}  Qxe8 {[%clk 0:00:15]} 32. Bxe8 {[%clk 0:00:18]}  Bxd5 {[%clk 0:00:14]} 33. Qxf8# {[%clk 0:00:16]} 1-0


[Site "https://www.chess.com"]

[Event "Titled Tuesday Blitz August 02 Early 2022"]
[White "Maksimovic, Bojan"]
[Black "Navarrete Mendez, Gonzalo Alberto"]
[WhiteFideId "14408120"]
[BlackFideId "5106850"]
[WhiteElo "2453"]
[BlackElo "2261"]
[Result "1-0"]
[Round "04"]
[TimeControl "180+1"]
[Date "2022.08.02"]
[WhiteClock "0:00:24"]
[BlackClock "0:00:02"]

1. d4 {[%clk 0:03:00]}  d5 {[%clk 0:02:59]} 2. c4 {[%clk 0:03:00]}  dxc4 {[%clk 0:03:00]} 3. Nf3 {[%clk 0:02:59]}  a6 {[%clk 0:03:00]} 4. a4 {[%clk 0:02:58]}  Nf6 {[%clk 0:02:58]} 5. Nc3 {[%clk 0:02:52]}  Nc6 {[%clk 0:02:54]} 6. e3 {[%clk 0:02:43]}  Bg4 {[%clk 0:02:53]} 7. Bxc4 {[%clk 0:02:41]}  e6 {[%clk 0:02:54]} 8. O-O {[%clk 0:02:36]}  Bd6 {[%clk 0:02:52]} 9. h3 {[%clk 0:02:36]}  Bh5 {[%clk 0:02:52]} 10. Be2 {[%clk 0:02:29]}  O-O {[%clk 0:02:51]} 11. e4 {[%clk 0:02:29]}  Bxf3 {[%clk 0:02:50]} 12. Bxf3 {[%clk 0:02:26]}  Nxd4 {[%clk 0:02:50]} 13. Be3 {[%clk 0:02:24]}  Nxf3+ {[%clk 0:02:49]} 14. Qxf3 {[%clk 0:02:25]}  Nd7 {[%clk 0:02:19]} 15. Rfd1 {[%clk 0:02:23]}  Qe7 {[%clk 0:02:13]} 16. Bd4 {[%clk 0:01:51]}  Be5 {[%clk 0:02:05]} 17. Bxe5 {[%clk 0:01:46]}  Nxe5 {[%clk 0:02:06]} 18. Qg3 {[%clk 0:01:47]}  Ng6 {[%clk 0:01:49]} 19. Rd3 {[%clk 0:01:46]}  Rfd8 {[%clk 0:01:47]} 20. Rad1 {[%clk 0:01:47]}  Rxd3 {[%clk 0:01:37]} 21. Qxd3 {[%clk 0:01:47]}  Nf4 {[%clk 0:01:17]} 22. Qf3 {[%clk 0:01:48]}  Ng6 {[%clk 0:00:59]} 23. Qd3 {[%clk 0:01:38]}  Nf4 {[%clk 0:00:58]} 24. Qg3 {[%clk 0:01:37]}  e5 {[%clk 0:00:51]} 25. Nd5 {[%clk 0:01:32]}  Qd6 {[%clk 0:00:29]} 26. Qf3 {[%clk 0:01:23]}  Nxd5 {[%clk 0:00:23]} 27. Rxd5 {[%clk 0:01:23]}  Qe6 {[%clk 0:00:20]} 28. Qd3 {[%clk 0:01:23]}  h5 {[%clk 0:00:16]} 29. Rd7 {[%clk 0:01:21]}  Rc8 {[%clk 0:00:14]} 30. b3 {[%clk 0:01:21]}  g6 {[%clk 0:00:14]} 31. Rd5 {[%clk 0:01:16]}  c6 {[%clk 0:00:13]} 32. Rd7 {[%clk 0:01:15]}  b5 {[%clk 0:00:12]} 33. Rd6 {[%clk 0:01:00]}  Qe8 {[%clk 0:00:11]} 34. a5 {[%clk 0:01:00]}  Kh7 {[%clk 0:00:09]} 35. Kh2 {[%clk 0:00:49]}  Rc7 {[%clk 0:00:09]} 36. Qc3 {[%clk 0:00:46]}  Qe7 {[%clk 0:00:09]} 37. Rxc6 {[%clk 0:00:38]}  Rxc6 {[%clk 0:00:06]} 38. Qxc6 {[%clk 0:00:39]}  Qb4 {[%clk 0:00:06]} 39. Qxa6 {[%clk 0:00:36]}  Qxe4 {[%clk 0:00:06]} 40. Qf6 {[%clk 0:00:36]}  Qb1 {[%clk 0:00:02]} 41. a6 {[%clk 0:00:36]}  Qxb3 {[%clk 0:00:02]} 42. Qf3 {[%clk 0:00:24]}  Qa2 {[%clk 0:00:02]} 43. Qb7 {[%clk 0:00:24]} 1-0


[Site "https://www.chess.com"]

[Event "Titled Tuesday Blitz August 02 Early 2022"]
[White "Martinez Alcantara, Jose Eduardo"]
[Black "Lobanov, Sergei"]
[WhiteFideId "3805662"]
[BlackFideId "24183750"]
[WhiteElo "2703"]
[BlackElo "2524"]
[Result "1-0"]
[Round "04"]
[TimeControl "180+1"]
[Date "2022.08.02"]
[WhiteClock "0:00:11"]
[BlackClock "0:00:05"]

1. e4 {[%clk 0:03:00]}  e5 {[%clk 0:02:59]} 2. Nf3 {[%clk 0:03:01]}  Nc6 {[%clk 0:03:00]} 3. Bb5 {[%clk 0:03:01]}  a6 {[%clk 0:03:01]} 4. Ba4 {[%clk 0:03:02]}  Bc5 {[%clk 0:03:01]} 5. c3 {[%clk 0:03:00]}  Ba7 {[%clk 0:03:00]} 6. d4 {[%clk 0:03:00]}  Nf6 {[%clk 0:02:59]} 7. Bg5 {[%clk 0:02:59]}  h6 {[%clk 0:02:50]} 8. Bxf6 {[%clk 0:02:50]}  Qxf6 {[%clk 0:02:51]} 9. Bxc6 {[%clk 0:02:50]}  dxc6 {[%clk 0:02:52]} 10. Nxe5 {[%clk 0:02:37]}  c5 {[%clk 0:02:44]} 11. Nf3 {[%clk 0:02:37]}  cxd4 {[%clk 0:02:41]} 12. cxd4 {[%clk 0:02:37]}  Bg4 {[%clk 0:02:39]} 13. Nbd2 {[%clk 0:02:37]}  O-O {[%clk 0:02:32]} 14. h3 {[%clk 0:02:33]}  Bh5 {[%clk 0:02:32]} 15. O-O {[%clk 0:02:06]}  Bxd4 {[%clk 0:02:17]} 16. Qb3 {[%clk 0:02:06]}  Rfd8 {[%clk 0:01:45]} 17. Rac1 {[%clk 0:01:51]}  c5 {[%clk 0:01:25]} 18. e5 {[%clk 0:01:30]}  Qf4 {[%clk 0:00:53]} 19. a4 {[%clk 0:00:48]}  Rab8 {[%clk 0:00:46]} 20. e6 {[%clk 0:00:48]}  fxe6 {[%clk 0:00:44]} 21. Rce1 {[%clk 0:00:39]}  Bf7 {[%clk 0:00:42]} 22. Nxd4 {[%clk 0:00:38]}  cxd4 {[%clk 0:00:40]} 23. Qd3 {[%clk 0:00:34]}  e5 {[%clk 0:00:37]} 24. Nf3 {[%clk 0:00:32]}  Re8 {[%clk 0:00:34]} 25. Re4 {[%clk 0:00:23]}  Qf6 {[%clk 0:00:32]} 26. Qe2 {[%clk 0:00:23]}  Bg6 {[%clk 0:00:16]} 27. Rxe5 {[%clk 0:00:23]}  d3 {[%clk 0:00:15]} 28. Qe3 {[%clk 0:00:23]}  Kh7 {[%clk 0:00:13]} 29. Rd1 {[%clk 0:00:22]}  b5 {[%clk 0:00:12]} 30. a5 {[%clk 0:00:22]}  b4 {[%clk 0:00:12]} 31. b3 {[%clk 0:00:22]}  Rbc8 {[%clk 0:00:11]} 32. Rxe8 {[%clk 0:00:16]}  Rxe8 {[%clk 0:00:11]} 33. Qd4 {[%clk 0:00:17]}  Qxd4 {[%clk 0:00:08]} 34. Nxd4 {[%clk 0:00:18]}  Re5 {[%clk 0:00:05]} 35. Nc6 {[%clk 0:00:12]}  Rb5 {[%clk 0:00:05]} 36. f3 {[%clk 0:00:11]}  Be8 {[%clk 0:00:04]} 37. Nd4 {[%clk 0:00:11]}  Rxa5 {[%clk 0:00:05]} 38. Kf2 {[%clk 0:00:11]} 1-0


[Site "https://www.chess.com"]

[Event "Titled Tuesday Blitz August 02 Early 2022"]
[White "Ohanyan, Emin"]
[Black "Melikyan, Gnel"]
[WhiteFideId "13312022"]
[BlackFideId "54109990"]
[WhiteElo "1927"]
[BlackElo "1772"]
[Result "1-0"]
[Round "04"]
[TimeControl "180+1"]
[Date "2022.08.02"]
[WhiteClock "0:00:11"]
[BlackClock "0:00:07"]

1. d4 {[%clk 0:03:00]}  d5 {[%clk 0:02:58]} 2. c4 {[%clk 0:03:00]}  dxc4 {[%clk 0:02:58]} 3. e4 {[%clk 0:02:57]}  e5 {[%clk 0:02:57]} 4. Nf3 {[%clk 0:02:57]}  Bb4+ {[%clk 0:02:53]} 5. Nbd2 {[%clk 0:02:54]}  exd4 {[%clk 0:02:47]} 6. Bxc4 {[%clk 0:02:54]}  Nh6 {[%clk 0:02:25]} 7. O-O {[%clk 0:01:58]}  O-O {[%clk 0:02:22]} 8. Nb3 {[%clk 0:01:58]}  Ng4 {[%clk 0:02:08]} 9. h3 {[%clk 0:01:31]}  Nf6 {[%clk 0:02:06]} 10. e5 {[%clk 0:01:32]}  Ne4 {[%clk 0:01:48]} 11. Nbxd4 {[%clk 0:01:08]}  Be7 {[%clk 0:01:14]} 12. Qc2 {[%clk 0:01:04]}  Nc5 {[%clk 0:01:12]} 13. Rd1 {[%clk 0:01:03]}  Qe8 {[%clk 0:01:07]} 14. Be3 {[%clk 0:00:59]}  Nc6 {[%clk 0:00:51]} 15. Nf5 {[%clk 0:00:51]}  Be6 {[%clk 0:00:34]} 16. Nxe7+ {[%clk 0:00:44]}  Qxe7 {[%clk 0:00:31]} 17. Ng5 {[%clk 0:00:45]}  g6 {[%clk 0:00:27]} 18. Bxc5 {[%clk 0:00:41]}  Qxg5 {[%clk 0:00:25]} 19. Bxe6 {[%clk 0:00:37]}  fxe6 {[%clk 0:00:22]} 20. Bxf8 {[%clk 0:00:38]}  Rxf8 {[%clk 0:00:21]} 21. Qe4 {[%clk 0:00:38]}  Rf4 {[%clk 0:00:18]} 22. Qe3 {[%clk 0:00:33]}  Nxe5 {[%clk 0:00:15]} 23. Kh1 {[%clk 0:00:28]}  Nf7 {[%clk 0:00:09]} 24. Rd7 {[%clk 0:00:24]}  Rc4 {[%clk 0:00:07]} 25. Qxe6 {[%clk 0:00:19]}  Qf4 {[%clk 0:00:06]} 26. Rad1 {[%clk 0:00:12]}  Rc6 {[%clk 0:00:06]} 27. Qe8+ {[%clk 0:00:11]}  Kg7 {[%clk 0:00:06]} 28. Rxf7+ {[%clk 0:00:10]}  Qxf7 {[%clk 0:00:07]} 29. Rd7 {[%clk 0:00:11]} 1-0


[Site "https://www.chess.com"]

[Event "Titled Tuesday Blitz August 02 Early 2022"]
[White "Olivares Olivares, Claudio"]
[Black "Aditya Mittal"]
[WhiteFideId "3400786"]
[BlackFideId "35042025"]
[WhiteElo "2249"]
[BlackElo "2303"]
[Result "0-1"]
[Round "04"]
[TimeControl "180+1"]
[Date "2022.08.02"]
[WhiteClock "0:00:01"]
[BlackClock "0:00:24"]

1. e4 {[%clk 0:02:05]}  c5 {[%clk 0:02:58]} 2. Nf3 {[%clk 0:02:05]}  d6 {[%clk 0:02:59]} 3. d4 {[%clk 0:02:06]}  cxd4 {[%clk 0:03:00]} 4. Nxd4 {[%clk 0:02:07]}  Nf6 {[%clk 0:03:00]} 5. Nc3 {[%clk 0:02:07]}  a6 {[%clk 0:03:01]} 6. Bc4 {[%clk 0:02:08]}  e6 {[%clk 0:03:01]} 7. Bb3 {[%clk 0:02:08]}  Nbd7 {[%clk 0:02:58]} 8. f4 {[%clk 0:02:07]}  Nc5 {[%clk 0:02:58]} 9. e5 {[%clk 0:02:08]}  dxe5 {[%clk 0:02:51]} 10. fxe5 {[%clk 0:02:09]}  Nfd7 {[%clk 0:02:51]} 11. Bf4 {[%clk 0:02:08]}  g5 {[%clk 0:02:39]} 12. Bg3 {[%clk 0:02:07]}  h5 {[%clk 0:02:40]} 13. h4 {[%clk 0:02:06]}  gxh4 {[%clk 0:02:38]} 14. Bxh4 {[%clk 0:01:58]}  Be7 {[%clk 0:02:37]} 15. Bg3 {[%clk 0:01:54]}  Rg8 {[%clk 0:02:25]} 16. Qf3 {[%clk 0:01:32]}  Nxb3 {[%clk 0:02:24]} 17. axb3 {[%clk 0:01:29]}  Bc5 {[%clk 0:02:21]} 18. Nxe6 {[%clk 0:01:22]}  Nxe5 {[%clk 0:01:44]} 19. Bxe5 {[%clk 0:01:06]}  Bxe6 {[%clk 0:01:43]} 20. Ne4 {[%clk 0:01:00]}  Be7 {[%clk 0:01:36]} 21. Rd1 {[%clk 0:00:39]}  Qa5+ {[%clk 0:01:32]} 22. Bc3 {[%clk 0:00:39]}  Qf5 {[%clk 0:01:28]} 23. Rxh5 {[%clk 0:00:22]}  Qg4 {[%clk 0:00:54]} 24. Nf6+ {[%clk 0:00:07]}  Bxf6 {[%clk 0:00:54]} 25. Bxf6 {[%clk 0:00:08]}  Qxf3 {[%clk 0:00:29]} 26. gxf3 {[%clk 0:00:09]}  Rc8 {[%clk 0:00:29]} 27. c4 {[%clk 0:00:04]}  Rg1+ {[%clk 0:00:26]} 28. Ke2 {[%clk 0:00:04]}  Rxd1 {[%clk 0:00:25]} 29. Kxd1 {[%clk 0:00:05]}  Kd7 {[%clk 0:00:25]} 30. Kd2 {[%clk 0:00:04]}  Rg8 {[%clk 0:00:25]} 31. Rg5 {[%clk 0:00:04]}  Re8 {[%clk 0:00:25]} 32. Rg1 {[%clk 0:00:02]}  Kc6 {[%clk 0:00:25]} 33. Re1 {[%clk 0:00:02]}  b5 {[%clk 0:00:24]} 34. Kc3 {[%clk 0:00:02]}  Rb8 {[%clk 0:00:24]} 35. Re5 {[%clk 0:00:01]}  Rg8 {[%clk 0:00:24]} 36. Be7 {[%clk 0:00:01]}  Rg3 {[%clk 0:00:24]} 0-1


[Site "https://www.chess.com"]

[Event "Titled Tuesday Blitz August 02 Early 2022"]
[White "Oparin, Grigoriy"]
[Black "Saydaliev, Saidakbar"]
[WhiteFideId "24125890"]
[BlackFideId "14203693"]
[WhiteElo "2639"]
[BlackElo "2265"]
[Result "0-1"]
[Round "04"]
[TimeControl "180+1"]
[Date "2022.08.02"]
[WhiteClock "0:00:19"]
[BlackClock "0:00:17"]

1. e4 {[%clk 0:03:00]}  e5 {[%clk 0:02:59]} 2. Nf3 {[%clk 0:03:00]}  Nc6 {[%clk 0:02:59]} 3. Bb5 {[%clk 0:03:00]}  a6 {[%clk 0:02:59]} 4. Ba4 {[%clk 0:03:00]}  Nf6 {[%clk 0:02:59]} 5. d3 {[%clk 0:03:01]}  b5 {[%clk 0:02:58]} 6. Bb3 {[%clk 0:03:01]}  Bc5 {[%clk 0:02:59]} 7. Bg5 {[%clk 0:03:00]}  h6 {[%clk 0:02:55]} 8. Bh4 {[%clk 0:03:01]}  d6 {[%clk 0:02:46]} 9. c3 {[%clk 0:02:59]}  Bb6 {[%clk 0:02:46]} 10. Nbd2 {[%clk 0:02:57]}  Be6 {[%clk 0:02:37]} 11. O-O {[%clk 0:02:57]}  g5 {[%clk 0:02:35]} 12. Bg3 {[%clk 0:02:57]}  Qd7 {[%clk 0:02:25]} 13. a4 {[%clk 0:02:54]}  O-O {[%clk 0:02:21]} 14. Kh1 {[%clk 0:02:49]}  Nh5 {[%clk 0:01:48]} 15. Ne1 {[%clk 0:02:34]}  Bg4 {[%clk 0:01:38]} 16. Qc1 {[%clk 0:02:10]}  Be2 {[%clk 0:01:32]} 17. Bd5 {[%clk 0:01:48]}  Rab8 {[%clk 0:01:26]} 18. axb5 {[%clk 0:01:48]}  axb5 {[%clk 0:01:26]} 19. d4 {[%clk 0:01:09]}  exd4 {[%clk 0:01:12]} 20. cxd4 {[%clk 0:01:09]}  Nxd4 {[%clk 0:01:07]} 21. Nc2 {[%clk 0:00:53]}  Bxf1 {[%clk 0:01:04]} 22. Nxf1 {[%clk 0:00:52]}  c6 {[%clk 0:00:59]} 23. Ba2 {[%clk 0:00:51]}  Nxg3+ {[%clk 0:00:55]} 24. Nxg3 {[%clk 0:00:51]}  Ra8 {[%clk 0:00:51]} 25. Ne3 {[%clk 0:00:48]}  Qe7 {[%clk 0:00:40]} 26. f3 {[%clk 0:00:35]}  d5 {[%clk 0:00:24]} 27. exd5 {[%clk 0:00:32]}  Nb3 {[%clk 0:00:19]} 28. Bxb3 {[%clk 0:00:30]}  Rxa1 {[%clk 0:00:20]} 29. Qxa1 {[%clk 0:00:31]}  Qxe3 {[%clk 0:00:21]} 30. Qd1 {[%clk 0:00:25]}  cxd5 {[%clk 0:00:20]} 31. h4 {[%clk 0:00:22]}  Rc8 {[%clk 0:00:20]} 32. Kh2 {[%clk 0:00:19]}  Qf4 {[%clk 0:00:17]} 0-1


[Site "https://www.chess.com"]

[Event "Titled Tuesday Blitz August 02 Early 2022"]
[White "Pranav Anand"]
[Black "Xiong, Jeffery"]
[WhiteFideId "46626786"]
[BlackFideId "2047640"]
[WhiteElo "2259"]
[BlackElo "2714"]
[Result "0-1"]
[Round "04"]
[TimeControl "180+1"]
[Date "2022.08.02"]
[WhiteClock "0:00:04"]
[BlackClock "0:00:05"]

1. Nf3 {[%clk 0:03:00]}  c5 {[%clk 0:02:59]} 2. g3 {[%clk 0:03:00]}  Nc6 {[%clk 0:02:59]} 3. Bg2 {[%clk 0:03:01]}  g6 {[%clk 0:02:59]} 4. O-O {[%clk 0:03:01]}  Bg7 {[%clk 0:03:00]} 5. e4 {[%clk 0:03:02]}  d6 {[%clk 0:03:00]} 6. d3 {[%clk 0:03:01]}  e5 {[%clk 0:03:00]} 7. Nc3 {[%clk 0:03:01]}  Nge7 {[%clk 0:03:01]} 8. Bg5 {[%clk 0:03:01]}  h6 {[%clk 0:03:01]} 9. Be3 {[%clk 0:02:57]}  O-O {[%clk 0:03:00]} 10. Nd2 {[%clk 0:02:54]}  f5 {[%clk 0:03:00]} 11. f4 {[%clk 0:02:55]}  Kh7 {[%clk 0:02:59]} 12. Nc4 {[%clk 0:02:53]}  Be6 {[%clk 0:02:59]} 13. fxe5 {[%clk 0:02:49]}  Nxe5 {[%clk 0:02:59]} 14. Nxe5 {[%clk 0:02:49]}  Bxe5 {[%clk 0:03:00]} 15. Qd2 {[%clk 0:02:49]}  g5 {[%clk 0:02:58]} 16. Kh1 {[%clk 0:02:42]}  Qd7 {[%clk 0:02:42]} 17. Rae1 {[%clk 0:02:37]}  Rf7 {[%clk 0:02:37]} 18. Ne2 {[%clk 0:02:22]}  Raf8 {[%clk 0:02:35]} 19. c3 {[%clk 0:02:15]}  fxe4 {[%clk 0:02:33]} 20. Bxe4+ {[%clk 0:02:15]}  Kg8 {[%clk 0:02:25]} 21. Rxf7 {[%clk 0:02:15]}  Rxf7 {[%clk 0:02:26]} 22. d4 {[%clk 0:02:15]}  cxd4 {[%clk 0:02:01]} 23. Nxd4 {[%clk 0:02:09]}  Bd5 {[%clk 0:02:01]} 24. Qg2 {[%clk 0:02:01]}  Bxa2 {[%clk 0:01:35]} 25. Bxb7 {[%clk 0:01:54]}  Bc4 {[%clk 0:01:18]} 26. Be4 {[%clk 0:01:49]}  a5 {[%clk 0:01:11]} 27. b3 {[%clk 0:01:45]}  Bxd4 {[%clk 0:01:11]} 28. Bxd4 {[%clk 0:01:46]}  Bxb3 {[%clk 0:01:11]} 29. Kg1 {[%clk 0:01:24]}  a4 {[%clk 0:01:07]} 30. c4 {[%clk 0:01:19]}  Bxc4 {[%clk 0:01:01]} 31. Qc2 {[%clk 0:01:12]}  Bb3 {[%clk 0:00:44]} 32. Qb1 {[%clk 0:01:04]}  Qg4 {[%clk 0:00:38]} 33. Ba1 {[%clk 0:01:01]}  Qc8 {[%clk 0:00:26]} 34. Qb2 {[%clk 0:00:59]}  Qc5+ {[%clk 0:00:26]} 35. Kh1 {[%clk 0:00:59]}  Kf8 {[%clk 0:00:26]} 36. Qh8+ {[%clk 0:00:57]}  Ng8 {[%clk 0:00:26]} 37. Bd4 {[%clk 0:00:46]}  Qa5 {[%clk 0:00:09]} 38. Rc1 {[%clk 0:00:42]}  Bd5 {[%clk 0:00:10]} 39. Bxd5 {[%clk 0:00:19]}  Qxd5+ {[%clk 0:00:11]} 40. Kg1 {[%clk 0:00:20]}  Qe6 {[%clk 0:00:08]} 41. Rb1 {[%clk 0:00:18]}  Qe8 {[%clk 0:00:03]} 42. Bc3 {[%clk 0:00:16]}  a3 {[%clk 0:00:03]} 43. Re1 {[%clk 0:00:16]}  Qc8 {[%clk 0:00:03]} 44. Bd4 {[%clk 0:00:09]}  a2 {[%clk 0:00:03]} 45. Ra1 {[%clk 0:00:08]}  Qa8 {[%clk 0:00:04]} 46. Re1 {[%clk 0:00:08]}  Qa5 {[%clk 0:00:04]} 47. Bc3 {[%clk 0:00:08]}  Qa7+ {[%clk 0:00:03]} 48. Bd4 {[%clk 0:00:08]}  Qa4 {[%clk 0:00:04]} 49. Ba1 {[%clk 0:00:07]}  Qc2 {[%clk 0:00:03]} 50. Qd4 {[%clk 0:00:06]}  Qc5 {[%clk 0:00:03]} 51. Qxc5 {[%clk 0:00:06]}  dxc5 {[%clk 0:00:04]} 52. Rc1 {[%clk 0:00:07]}  Rb7 {[%clk 0:00:04]} 53. Kf2 {[%clk 0:00:03]}  Rb1 {[%clk 0:00:05]} 54. Rxc5 {[%clk 0:00:03]}  Rxa1 {[%clk 0:00:06]} 55. Rf5+ {[%clk 0:00:04]}  Ke7 {[%clk 0:00:05]} 0-1


[Site "https://www.chess.com"]

[Event "Titled Tuesday Blitz August 02 Early 2022"]
[White "Seemann, Jakub"]
[Black "Abdrlauf, Elham"]
[WhiteFideId "21874697"]
[BlackFideId "1533533"]
[WhiteElo "2033"]
[BlackElo "2429"]
[Result "0-1"]
[Round "04"]
[TimeControl "180+1"]
[Date "2022.08.02"]
[WhiteClock "0:00:01"]
[BlackClock "0:00:04"]

1. d4 {[%clk 0:03:00]}  Nf6 {[%clk 0:02:58]} 2. c4 {[%clk 0:03:01]}  e6 {[%clk 0:02:58]} 3. Nc3 {[%clk 0:03:00]}  d5 {[%clk 0:02:58]} 4. Nf3 {[%clk 0:02:59]}  c6 {[%clk 0:02:58]} 5. g3 {[%clk 0:02:58]}  dxc4 {[%clk 0:02:55]} 6. Bg2 {[%clk 0:02:56]}  b5 {[%clk 0:02:55]} 7. Ne5 {[%clk 0:02:47]}  a6 {[%clk 0:02:55]} 8. O-O {[%clk 0:02:44]}  Bb7 {[%clk 0:02:52]} 9. e4 {[%clk 0:02:45]}  Nbd7 {[%clk 0:02:50]} 10. f4 {[%clk 0:02:45]}  Be7 {[%clk 0:02:31]} 11. Qe2 {[%clk 0:02:36]}  O-O {[%clk 0:02:28]} 12. Be3 {[%clk 0:02:35]}  c5 {[%clk 0:02:25]} 13. d5 {[%clk 0:02:27]}  exd5 {[%clk 0:02:23]} 14. exd5 {[%clk 0:02:22]}  Bd6 {[%clk 0:01:45]} 15. Nc6 {[%clk 0:02:15]}  Qc7 {[%clk 0:01:44]} 16. Rae1 {[%clk 0:02:04]}  Rfe8 {[%clk 0:01:28]} 17. Qf3 {[%clk 0:02:03]}  Nb6 {[%clk 0:01:20]} 18. g4 {[%clk 0:01:54]}  Rac8 {[%clk 0:01:04]} 19. Bf2 {[%clk 0:01:02]}  Bxf4 {[%clk 0:00:53]} 20. Bxc5 {[%clk 0:00:59]}  Bd6 {[%clk 0:00:15]} 21. Bxd6 {[%clk 0:00:55]}  Qxd6 {[%clk 0:00:16]} 22. Rxe8+ {[%clk 0:00:54]}  Rxe8 {[%clk 0:00:16]} 23. g5 {[%clk 0:00:54]}  Bxc6 {[%clk 0:00:02]} 24. dxc6 {[%clk 0:00:45]}  Qc5+ {[%clk 0:00:03]} 25. Kh1 {[%clk 0:00:46]}  Qxg5 {[%clk 0:00:03]} 26. c7 {[%clk 0:00:47]}  Nc8 {[%clk 0:00:02]} 27. Qc6 {[%clk 0:00:45]}  Qe5 {[%clk 0:00:02]} 28. Nd5 {[%clk 0:00:43]}  Nxd5 {[%clk 0:00:01]} 29. Bxd5 {[%clk 0:00:44]}  Rf8 {[%clk 0:00:01]} 30. Qd7 {[%clk 0:00:35]}  Nd6 {[%clk 0:00:02]} 31. Qc6 {[%clk 0:00:14]}  g6 {[%clk 0:00:02]} 32. Bxf7+ {[%clk 0:00:06]}  Kg7 {[%clk 0:00:02]} 33. Rg1 {[%clk 0:00:03]}  Nxf7 {[%clk 0:00:02]} 34. c8=Q {[%clk 0:00:03]}  Rxc8 {[%clk 0:00:03]} 35. Qxc8 {[%clk 0:00:04]}  Qxb2 {[%clk 0:00:02]} 36. Rg2 {[%clk 0:00:05]}  Qa1+ {[%clk 0:00:02]} 37. Rg1 {[%clk 0:00:05]}  Qe5 {[%clk 0:00:01]} 38. Qxa6 {[%clk 0:00:04]}  Qd5+ {[%clk 0:00:02]} 39. Rg2 {[%clk 0:00:04]}  Qd1+ {[%clk 0:00:03]} 40. Rg1 {[%clk 0:00:04]}  Qd5+ {[%clk 0:00:04]} 41. Rg2 {[%clk 0:00:04]}  c3 {[%clk 0:00:05]} 42. Qa7 {[%clk 0:00:03]}  Qd1+ {[%clk 0:00:03]} 43. Rg1 {[%clk 0:00:03]}  Qd5+ {[%clk 0:00:03]} 44. Rg2 {[%clk 0:00:03]}  Qd1+ {[%clk 0:00:03]} 45. Rg1 {[%clk 0:00:03]}  c2 {[%clk 0:00:03]} 46. Qe3 {[%clk 0:00:02]}  Qd5+ {[%clk 0:00:03]} 47. Rg2 {[%clk 0:00:01]}  Ne5 {[%clk 0:00:04]} 0-1


[Site "https://www.chess.com"]

[Event "Titled Tuesday Blitz August 02 Early 2022"]
[White "Shimanov, Aleksandr"]
[Black "Kalashian, David"]
[WhiteFideId "4198603"]
[BlackFideId "13302418"]
[WhiteElo "2605"]
[BlackElo "2490"]
[Result "1-0"]
[Round "04"]
[TimeControl "180+1"]
[Date "2022.08.02"]
[WhiteClock "0:01:16"]
[BlackClock "0:00:01"]

1. e4 {[%clk 0:03:00]}  c6 {[%clk 0:02:59]} 2. Nf3 {[%clk 0:02:56]}  g6 {[%clk 0:02:58]} 3. d4 {[%clk 0:02:50]}  Bg7 {[%clk 0:02:59]} 4. h3 {[%clk 0:02:41]}  d6 {[%clk 0:02:56]} 5. c4 {[%clk 0:02:38]}  Nd7 {[%clk 0:02:47]} 6. Nc3 {[%clk 0:02:38]}  e5 {[%clk 0:02:40]} 7. d5 {[%clk 0:02:36]}  c5 {[%clk 0:02:33]} 8. g4 {[%clk 0:02:33]}  a6 {[%clk 0:02:32]} 9. Rg1 {[%clk 0:02:30]}  Ne7 {[%clk 0:02:31]} 10. Be3 {[%clk 0:02:25]}  O-O {[%clk 0:02:24]} 11. Bd3 {[%clk 0:02:10]}  b5 {[%clk 0:02:19]} 12. cxb5 {[%clk 0:02:08]}  Nb6 {[%clk 0:01:53]} 13. a4 {[%clk 0:02:00]}  axb5 {[%clk 0:01:47]} 14. Bxb5 {[%clk 0:01:59]}  Ba6 {[%clk 0:01:46]} 15. Nd2 {[%clk 0:01:55]}  Bxb5 {[%clk 0:01:29]} 16. axb5 {[%clk 0:01:54]}  Rxa1 {[%clk 0:01:19]} 17. Qxa1 {[%clk 0:01:54]}  f5 {[%clk 0:01:14]} 18. f3 {[%clk 0:01:42]}  fxe4 {[%clk 0:01:08]} 19. fxe4 {[%clk 0:01:42]}  Nec8 {[%clk 0:00:43]} 20. Ke2 {[%clk 0:01:32]}  Qh4 {[%clk 0:00:38]} 21. Rh1 {[%clk 0:01:32]}  Qe7 {[%clk 0:00:08]} 22. Rf1 {[%clk 0:01:28]}  Qh4 {[%clk 0:00:05]} 23. Rxf8+ {[%clk 0:01:27]}  Bxf8 {[%clk 0:00:06]} 24. Qf1 {[%clk 0:01:27]}  Qg3 {[%clk 0:00:05]} 25. Qf3 {[%clk 0:01:19]}  Qh2+ {[%clk 0:00:04]} 26. Kf1 {[%clk 0:01:18]}  Be7 {[%clk 0:00:03]} 27. Ne2 {[%clk 0:01:17]}  Bh4 {[%clk 0:00:01]} 28. Bg1 {[%clk 0:01:16]} 1-0


[Site "https://www.chess.com"]